[Event "*** Titled Tuesday Blitz"]
[Site "Chess.com"]
[Date "2021.03.30"]
[Round "2"]
[White "Nikolakis2014"]
[Black "DanielNaroditsky"]
[Result "0-1"]
[WhiteElo "2604"]
[BlackElo "3034"]
[TimeControl "180+1"]
[EndTime "10:17:23 PDT"]
[Termination "DanielNaroditsky won by resignation"]

1. Nf3 {[%clk 0:03:00.9]} 1... Nf6 {[%clk 0:02:59.2]} 2. c4 {[%clk 0:03:00.8]}
2... g6 {[%clk 0:02:59.2]} 3. g3 {[%clk 0:03:00.6]} 3... Bg7 {[%clk 0:02:59.9]}
4. Bg2 {[%clk 0:03:01]} 4... O-O {[%clk 0:03:00.8]} 5. O-O {[%clk 0:03:01.2]}
5... d6 {[%clk 0:03:01.7]} 6. d4 {[%clk 0:03:01.5]} 6... Nbd7 {[%clk 0:03:02.3]}
7. Nc3 {[%clk 0:03:01.6]} 7... e5 {[%clk 0:03:03.1]} 8. e4 {[%clk 0:03:01.2]}
8... exd4 {[%clk 0:03:03.4]} 9. Nxd4 {[%clk 0:03:01]} 9... Re8 {[%clk
0:03:04.3]} 10. Re1 {[%clk 0:02:58.9]} 10... Nc5 {[%clk 0:03:05]} 11. h3 {[%clk
0:02:58.4]} 11... Bd7 {[%clk 0:03:04.9]} 12. Bf4 {[%clk 0:02:58.3]} 12... a5
{[%clk 0:02:50.1]} 13. Ndb5 {[%clk 0:02:48.4]} 13... Bc6 {[%clk 0:02:45.9]} 14.
Qc2 {[%clk 0:02:40.2]} 14... Nfd7 {[%clk 0:02:46.6]} 15. Rad1 {[%clk 0:02:37]}
15... Ne5 {[%clk 0:02:45.2]} 16. Nd5 {[%clk 0:02:35.5]} 16... Rc8 {[%clk
0:02:35.1]} 17. b3 {[%clk 0:02:30.8]} 17... Bxb5 {[%clk 0:02:34.8]} 18. cxb5
{[%clk 0:02:30.3]} 18... c6 {[%clk 0:02:35.7]} 19. bxc6 {[%clk 0:02:25.8]} 19...
bxc6 {[%clk 0:02:36.6]} 20. Ne3 {[%clk 0:02:20.4]} 20... Qc7 {[%clk 0:02:23.9]}
21. Nc4 {[%clk 0:02:08.9]} 21... Nxc4 {[%clk 0:02:21.1]} 22. Qxc4 {[%clk
0:02:08.6]} 22... Be5 {[%clk 0:02:21.8]} 23. Bxe5 {[%clk 0:02:01.5]} 23... Rxe5
{[%clk 0:02:20.9]} 24. f4 {[%clk 0:02:01.7]} 24... Ree8 {[%clk 0:02:15.9]} 25.
Kh2 {[%clk 0:01:52.6]} 25... Ne6 {[%clk 0:01:44.6]} 26. h4 {[%clk 0:01:49.6]}
26... Rcd8 {[%clk 0:01:39.2]} 27. Qc3 {[%clk 0:01:31.4]} 27... Ng7 {[%clk
0:01:34.4]} 28. Rc1 {[%clk 0:01:23.8]} 28... c5 {[%clk 0:01:33.1]} 29. Bh3
{[%clk 0:01:17.1]} 29... Qb6 {[%clk 0:01:29.5]} 30. Rcd1 {[%clk 0:01:15.7]}
30... Qb4 {[%clk 0:01:22.9]} 31. Qf3 {[%clk 0:00:59.4]} 31... Ne6 {[%clk
0:01:18.5]} 32. f5 {[%clk 0:00:50.3]} 32... Nd4 {[%clk 0:01:18.6]} 33. Qf4
{[%clk 0:00:50.2]} 33... Qc3 {[%clk 0:01:19.2]} 34. Bg2 {[%clk 0:00:38.4]} 34...
Re5 {[%clk 0:01:00.4]} 35. Rf1 {[%clk 0:00:31.8]} 35... Rf8 {[%clk 0:00:53.9]}
36. Rf2 {[%clk 0:00:27.5]} 36... f6 {[%clk 0:00:49.7]} 37. Rdf1 {[%clk 0:00:27]}
37... Kg7 {[%clk 0:00:48.1]} 38. fxg6 {[%clk 0:00:26.8]} 38... hxg6 {[%clk
0:00:49]} 39. Qg4 {[%clk 0:00:27.2]} 39... Qe3 {[%clk 0:00:38.9]} 40. Qd7+
{[%clk 0:00:26.4]} 40... Rf7 {[%clk 0:00:39.5]} 41. Qxd6 {[%clk 0:00:26.7]}
41... Re6 {[%clk 0:00:34.9]} 42. Qd5 {[%clk 0:00:24.4]} 42... Rfe7 {[%clk
0:00:34.3]} 43. e5 {[%clk 0:00:22.4]} 43... Qxe5 {[%clk 0:00:33.5]} 44. Qa8
{[%clk 0:00:21.4]} 44... Nf5 {[%clk 0:00:30.9]} 45. Rf4 {[%clk 0:00:20.7]} 45...
Ne3 {[%clk 0:00:30.4]} 46. Re4 {[%clk 0:00:18.8]} 46... Nxf1+ {[%clk 0:00:30.3]}
47. Kg1 {[%clk 0:00:19]} 47... Qxg3 {[%clk 0:00:27.4]} 0-1

[Event "*** Titled Tuesday Blitz"]
[Site "Chess.com"]
[Date "2021.03.30"]
[Round "2"]
[White "Bhagya_2312"]
[Black "NoGalloNoParty"]
[Result "1-0"]
[WhiteElo "2167"]
[BlackElo "2393"]
[TimeControl "180+1"]
[EndTime "10:17:24 PDT"]
[Termination "Bhagya_2312 won by resignation"]

1. e4 {[%clk 0:02:58.3]} 1... c5 {[%clk 0:02:57.9]} 2. Nf3 {[%clk 0:02:58.1]}
2... e6 {[%clk 0:02:57.6]} 3. d4 {[%clk 0:02:57.9]} 3... cxd4 {[%clk 0:02:56.8]}
4. Nxd4 {[%clk 0:02:58.5]} 4... Nc6 {[%clk 0:02:56.3]} 5. Nc3 {[%clk 0:02:58.1]}
5... Qc7 {[%clk 0:02:55.9]} 6. f4 {[%clk 0:02:55.4]} 6... a6 {[%clk 0:02:53.9]}
7. Be3 {[%clk 0:02:38.7]} 7... b5 {[%clk 0:02:31.9]} 8. Be2 {[%clk 0:02:19.8]}
8... Bb7 {[%clk 0:02:23.5]} 9. Bf3 {[%clk 0:02:19.8]} 9... d6 {[%clk 0:02:01.7]}
10. a3 {[%clk 0:02:05.7]} 10... Nf6 {[%clk 0:01:59.4]} 11. O-O {[%clk
0:02:00.6]} 11... Be7 {[%clk 0:01:58.8]} 12. Kh1 {[%clk 0:02:00.4]} 12... O-O
{[%clk 0:01:58]} 13. Qe2 {[%clk 0:01:53.1]} 13... Nxd4 {[%clk 0:01:55.9]} 14.
Bxd4 {[%clk 0:01:52]} 14... e5 {[%clk 0:01:51.4]} 15. Be3 {[%clk 0:01:51.6]}
15... Rfe8 {[%clk 0:01:47.9]} 16. Rad1 {[%clk 0:01:47.5]} 16... Rac8 {[%clk
0:01:45.8]} 17. Qf2 {[%clk 0:01:18]} 17... Bf8 {[%clk 0:01:38.9]} 18. fxe5
{[%clk 0:01:13]} 18... dxe5 {[%clk 0:01:32.8]} 19. Bg5 {[%clk 0:01:12.4]} 19...
Be7 {[%clk 0:01:24]} 20. Qg3 {[%clk 0:01:08.9]} 20... Red8 {[%clk 0:00:57.7]}
21. Bh6 {[%clk 0:00:44.6]} 21... g6 {[%clk 0:00:54]} 22. Bg4 {[%clk 0:00:31.8]}
22... Rxd1 {[%clk 0:00:53]} 23. Rxd1 {[%clk 0:00:30.6]} 23... Rd8 {[%clk
0:00:52.4]} 24. Re1 {[%clk 0:00:30.6]} 24... Nxg4 {[%clk 0:00:40.3]} 25. Qxg4
{[%clk 0:00:30.4]} 25... Qd7 {[%clk 0:00:32.8]} 26. Qf3 {[%clk 0:00:28.1]} 26...
f5 {[%clk 0:00:25.4]} 27. h3 {[%clk 0:00:25.7]} 27... a5 {[%clk 0:00:23.1]} 28.
Qe2 {[%clk 0:00:21.8]} 28... b4 {[%clk 0:00:19.3]} 29. Rd1 {[%clk 0:00:16.5]}
29... Qc7 {[%clk 0:00:14.5]} 30. Rxd8+ {[%clk 0:00:16.1]} 30... Bxd8 {[%clk
0:00:12.9]} 31. Nd5 {[%clk 0:00:15.9]} 31... Bxd5 {[%clk 0:00:12.6]} 32. exd5
{[%clk 0:00:16.2]} 32... Be7 {[%clk 0:00:12.8]} 33. Qb5 {[%clk 0:00:15.4]} 33...
bxa3 {[%clk 0:00:11.6]} 34. bxa3 {[%clk 0:00:14.8]} 34... Bxa3 {[%clk
0:00:08.8]} 35. Qe8+ {[%clk 0:00:14.8]} 1-0

[Event "*** Titled Tuesday Blitz"]
[Site "Chess.com"]
[Date "2021.03.30"]
[Round "2"]
[White "Caterpiller35"]
[Black "mr65"]
[Result "1/2-1/2"]
[WhiteElo "2391"]
[BlackElo "2100"]
[TimeControl "180+1"]
[EndTime "10:17:24 PDT"]
[Termination "Game drawn - insufficient material"]

1. d4 {[%clk 0:02:59.9]} 1... Nf6 {[%clk 0:02:59.2]} 2. Bg5 {[%clk 0:02:59.7]}
2... g6 {[%clk 0:02:58.8]} 3. Bxf6 {[%clk 0:02:59.3]} 3... exf6 {[%clk
0:02:57.6]} 4. e3 {[%clk 0:03:00.2]} 4... Bg7 {[%clk 0:02:57.3]} 5. c4 {[%clk
0:02:56.6]} 5... O-O {[%clk 0:02:56.6]} 6. Nc3 {[%clk 0:02:57.2]} 6... c5 {[%clk
0:02:55.8]} 7. dxc5 {[%clk 0:02:56.6]} 7... Nc6 {[%clk 0:02:51.3]} 8. g3 {[%clk
0:02:55.3]} 8... Qe7 {[%clk 0:02:46.3]} 9. Bg2 {[%clk 0:02:54.4]} 9... Qxc5
{[%clk 0:02:44.9]} 10. Nge2 {[%clk 0:02:54.5]} 10... Qxc4 {[%clk 0:02:41]} 11.
O-O {[%clk 0:02:54.4]} 11... f5 {[%clk 0:02:34.5]} 12. Rc1 {[%clk 0:02:54.3]}
12... Qe6 {[%clk 0:02:31.4]} 13. Nd5 {[%clk 0:02:49.3]} 13... Rb8 {[%clk
0:02:21.2]} 14. Nef4 {[%clk 0:02:47.3]} 14... Qe5 {[%clk 0:02:18.1]} 15. b4
{[%clk 0:02:46.7]} 15... a6 {[%clk 0:02:15.7]} 16. a4 {[%clk 0:02:45.5]} 16...
d6 {[%clk 0:02:10.6]} 17. b5 {[%clk 0:02:44.1]} 17... axb5 {[%clk 0:02:09.3]}
18. axb5 {[%clk 0:02:45]} 18... Ne7 {[%clk 0:02:05.7]} 19. Rc7 {[%clk
0:02:38.8]} 19... Nxd5 {[%clk 0:02:04.3]} 20. Nxd5 {[%clk 0:02:35.8]} 20... Be6
{[%clk 0:01:55.4]} 21. b6 {[%clk 0:02:22.9]} 21... Kh8 {[%clk 0:01:53.5]} 22. h4
{[%clk 0:02:21.3]} 22... Bxd5 {[%clk 0:01:50.4]} 23. Qxd5 {[%clk 0:02:22.2]}
23... Qxd5 {[%clk 0:01:42.5]} 24. Bxd5 {[%clk 0:02:23.1]} 24... Bf6 {[%clk
0:01:41.9]} 25. Rfc1 {[%clk 0:02:08]} 25... Bd8 {[%clk 0:01:37.4]} 26. Rxf7
{[%clk 0:01:51.2]} 26... Rxf7 {[%clk 0:01:33.6]} 27. Bxf7 {[%clk 0:01:52.1]}
27... Bxb6 {[%clk 0:01:33]} 28. h5 {[%clk 0:01:50.8]} 28... Kg7 {[%clk
0:01:30.1]} 29. Bd5 {[%clk 0:01:50.6]} 29... Bc5 {[%clk 0:01:29.7]} 30. Kg2
{[%clk 0:01:42.4]} 30... b5 {[%clk 0:01:26.5]} 31. Kf3 {[%clk 0:01:42.1]} 31...
b4 {[%clk 0:01:25.7]} 32. Rb1 {[%clk 0:01:41.9]} 32... Kf6 {[%clk 0:01:22.7]}
33. hxg6 {[%clk 0:01:41.2]} 33... hxg6 {[%clk 0:01:21.9]} 34. g4 {[%clk
0:01:41.6]} 34... Ke5 {[%clk 0:01:19.8]} 35. Bb3 {[%clk 0:01:41.6]} 35... Rf8
{[%clk 0:01:13.4]} 36. Rd1 {[%clk 0:01:40.4]} 36... fxg4+ {[%clk 0:01:10.6]} 37.
Kg2 {[%clk 0:01:35.4]} 37... Ra8 {[%clk 0:01:00.1]} 38. Rd5+ {[%clk 0:01:34.1]}
38... Kf6 {[%clk 0:00:59.8]} 39. Kg3 {[%clk 0:01:32.3]} 39... Ra3 {[%clk
0:00:59.1]} 40. Rd3 {[%clk 0:01:32.1]} 40... Ke5 {[%clk 0:00:56.8]} 41. Bc2
{[%clk 0:01:05.9]} 41... Rxd3 {[%clk 0:00:46.9]} 42. Bxd3 {[%clk 0:01:06.8]}
42... Kf6 {[%clk 0:00:43.9]} 43. Kxg4 {[%clk 0:01:06.6]} 43... b3 {[%clk
0:00:43.6]} 44. Kf4 {[%clk 0:01:00.7]} 44... b2 {[%clk 0:00:40.8]} 45. Ke4
{[%clk 0:01:00.9]} 45... g5 {[%clk 0:00:39.6]} 46. Kf3 {[%clk 0:00:55.6]} 46...
Bb4 {[%clk 0:00:36.1]} 47. Kg4 {[%clk 0:00:52]} 47... Be1 {[%clk 0:00:34.8]} 48.
f4 {[%clk 0:00:51.9]} 48... gxf4 {[%clk 0:00:32.3]} 49. Kxf4 {[%clk 0:00:51.2]}
49... Bd2 {[%clk 0:00:30.2]} 50. Ke4 {[%clk 0:00:51.3]} 50... Ke6 {[%clk
0:00:29.4]} 51. Kd4 {[%clk 0:00:50.7]} 51... d5 {[%clk 0:00:27.8]} 52. e4 {[%clk
0:00:49.9]} 52... dxe4 {[%clk 0:00:26.9]} 53. Bxe4 {[%clk 0:00:50]} 53... Bc3+
{[%clk 0:00:25.1]} 54. Kxc3 {[%clk 0:00:49.2]} 54... b1=Q {[%clk 0:00:24.5]} 55.
Bxb1 {[%clk 0:00:50.1]} 1/2-1/2

[Event "*** Titled Tuesday Blitz"]
[Site "Chess.com"]
[Date "2021.03.30"]
[Round "2"]
[White "LenkaPtacnikova"]
[Black "GiorgianBarbosa"]
[Result "0-1"]
[WhiteElo "2167"]
[BlackElo "2413"]
[TimeControl "180+1"]
[EndTime "10:17:25 PDT"]
[Termination "GiorgianBarbosa won on time"]

1. c4 {[%clk 0:02:59.5]} 1... Nf6 {[%clk 0:02:58.8]} 2. g3 {[%clk 0:02:58.5]}
2... g6 {[%clk 0:02:59.3]} 3. Bg2 {[%clk 0:02:59]} 3... Bg7 {[%clk 0:03:00.2]}
4. Nc3 {[%clk 0:02:59.1]} 4... O-O {[%clk 0:03:01.1]} 5. Nf3 {[%clk 0:02:56.8]}
5... c6 {[%clk 0:02:59.3]} 6. O-O {[%clk 0:02:56.2]} 6... d5 {[%clk 0:02:59]} 7.
cxd5 {[%clk 0:02:55]} 7... cxd5 {[%clk 0:02:59.2]} 8. d4 {[%clk 0:02:55.1]} 8...
Ne4 {[%clk 0:02:58.2]} 9. Qb3 {[%clk 0:02:48.3]} 9... Nc6 {[%clk 0:02:55.7]} 10.
Rd1 {[%clk 0:02:04.6]} 10... Na5 {[%clk 0:02:44.7]} 11. Qxd5 {[%clk 0:01:48.9]}
11... Nxc3 {[%clk 0:02:41.5]} 12. Qxd8 {[%clk 0:01:49.2]} 12... Nxe2+ {[%clk
0:02:41.7]} 13. Kf1 {[%clk 0:01:49.7]} 13... Nxg3+ {[%clk 0:02:40]} 14. hxg3
{[%clk 0:01:50.6]} 14... Rxd8 {[%clk 0:02:40.3]} 15. Bf4 {[%clk 0:01:43.1]}
15... b6 {[%clk 0:02:37.3]} 16. Ne5 {[%clk 0:01:35.3]} 16... Ba6+ {[%clk
0:02:37.1]} 17. Kg1 {[%clk 0:01:31.8]} 17... Rac8 {[%clk 0:02:37.4]} 18. Be4
{[%clk 0:01:03.5]} 18... Bb7 {[%clk 0:02:30]} 19. Bxb7 {[%clk 0:00:53.8]} 19...
Nxb7 {[%clk 0:02:30.9]} 20. Rac1 {[%clk 0:00:48.8]} 20... Bxe5 {[%clk 0:02:21]}
21. dxe5 {[%clk 0:00:43.7]} 21... Rxd1+ {[%clk 0:01:45.8]} 22. Rxd1 {[%clk
0:00:43.4]} 22... Nc5 {[%clk 0:01:46.1]} 23. Be3 {[%clk 0:00:38.1]} 23... Ne6
{[%clk 0:01:42.1]} 24. Rd7 {[%clk 0:00:35.6]} 24... Rc7 {[%clk 0:01:41.7]} 25.
Rd5 {[%clk 0:00:31.7]} 25... Kg7 {[%clk 0:01:41.2]} 26. a4 {[%clk 0:00:19.2]}
26... Rc4 {[%clk 0:00:58]} 27. a5 {[%clk 0:00:17.9]} 27... Rb4 {[%clk
0:00:57.8]} 28. Rd7 {[%clk 0:00:10.6]} 28... bxa5 {[%clk 0:00:43.8]} 29. Rxa7
{[%clk 0:00:09.5]} 29... Rxb2 {[%clk 0:00:43.3]} 30. Rxa5 {[%clk 0:00:10]} 30...
Rb7 {[%clk 0:00:43.3]} 31. Ra8 {[%clk 0:00:07.9]} 31... h5 {[%clk 0:00:43.1]}
32. Kg2 {[%clk 0:00:07.3]} 32... Rb5 {[%clk 0:00:40.2]} 33. f4 {[%clk
0:00:02.9]} 33... Rb3 {[%clk 0:00:36.6]} 34. Bf2 {[%clk 0:00:03]} 34... Rb7
{[%clk 0:00:21.2]} 35. Re8 {[%clk 0:00:01.6]} 35... Kh7 {[%clk 0:00:20.3]} 36.
Kf3 {[%clk 0:00:01.4]} 36... Ng7 {[%clk 0:00:20.5]} 0-1

[Event "*** Titled Tuesday Blitz"]
[Site "Chess.com"]
[Date "2021.03.30"]
[Round "2"]
[White "exoticprincess"]
[Black "Nice_2_M8te_U"]
[Result "1-0"]
[WhiteElo "2854"]
[BlackElo "2548"]
[TimeControl "180+1"]
[EndTime "10:17:26 PDT"]
[Termination "exoticprincess won by checkmate"]

1. d4 {[%clk 0:03:00.9]} 1... d5 {[%clk 0:02:58.9]} 2. Nc3 {[%clk 0:03:01]} 2...
Nf6 {[%clk 0:02:52.2]} 3. Bf4 {[%clk 0:03:01.3]} 3... Bf5 {[%clk 0:02:52.4]} 4.
f3 {[%clk 0:03:01.2]} 4... c5 {[%clk 0:02:52.1]} 5. e3 {[%clk 0:03:00.3]} 5...
a6 {[%clk 0:02:40.1]} 6. g4 {[%clk 0:02:58.6]} 6... cxd4 {[%clk 0:02:30.9]} 7.
exd4 {[%clk 0:02:57.7]} 7... Bg6 {[%clk 0:02:31.5]} 8. h4 {[%clk 0:02:56.7]}
8... h6 {[%clk 0:02:31.8]} 9. h5 {[%clk 0:02:56.8]} 9... Bh7 {[%clk 0:02:32]}
10. Bd3 {[%clk 0:02:57.3]} 10... Bxd3 {[%clk 0:02:30.5]} 11. Qxd3 {[%clk
0:02:58.2]} 11... Nc6 {[%clk 0:02:30.4]} 12. Nge2 {[%clk 0:02:58.7]} 12... e6
{[%clk 0:02:30.9]} 13. O-O-O {[%clk 0:02:57.6]} 13... Rc8 {[%clk 0:02:30.3]} 14.
Kb1 {[%clk 0:02:57.2]} 14... Qa5 {[%clk 0:02:30.4]} 15. Nc1 {[%clk 0:02:56]}
15... b5 {[%clk 0:02:27.3]} 16. Nb3 {[%clk 0:02:55.1]} 16... Qb6 {[%clk
0:02:27.8]} 17. Qe3 {[%clk 0:02:47.3]} 17... a5 {[%clk 0:02:25.1]} 18. a4 {[%clk
0:02:20.1]} 18... bxa4 {[%clk 0:01:56.6]} 19. Nxa4 {[%clk 0:02:21]} 19... Qb4
{[%clk 0:01:48.1]} 20. Nbc5 {[%clk 0:02:20]} 20... Bxc5 {[%clk 0:01:46.6]} 21.
Nxc5 {[%clk 0:02:17.9]} 21... Nxd4 {[%clk 0:01:46.1]} 22. Rxd4 {[%clk
0:01:33.8]} 22... Qxc5 {[%clk 0:01:43.8]} 23. c3 {[%clk 0:01:30.4]} 23... O-O
{[%clk 0:01:34.4]} 24. g5 {[%clk 0:01:28.5]} 24... hxg5 {[%clk 0:01:34.6]} 25.
Bxg5 {[%clk 0:01:28.5]} 25... Nh7 {[%clk 0:01:35.1]} 26. Rg1 {[%clk 0:01:21.4]}
26... Kh8 {[%clk 0:01:19]} 27. Bf4 {[%clk 0:01:19]} 27... Rfe8 {[%clk
0:01:08.2]} 28. h6 {[%clk 0:01:11.1]} 28... e5 {[%clk 0:00:50.9]} 29. Bxe5
{[%clk 0:01:05.2]} 29... f6 {[%clk 0:00:51]} 30. hxg7+ {[%clk 0:01:00.2]} 30...
Kg8 {[%clk 0:00:51.2]} 31. Qh6 {[%clk 0:00:55.6]} 31... fxe5 {[%clk 0:00:47]}
32. Rh1 {[%clk 0:00:55.4]} 32... Ng5 {[%clk 0:00:26.5]} 33. Qxg5 {[%clk
0:00:43.4]} 33... exd4 {[%clk 0:00:23.8]} 34. Rh8+ {[%clk 0:00:21.3]} 34... Kf7
{[%clk 0:00:24]} 35. Qf5+ {[%clk 0:00:19.3]} 35... Ke7 {[%clk 0:00:14]} 36. g8=Q
{[%clk 0:00:18.8]} 36... Rxg8 {[%clk 0:00:01.8]} 37. Rh7+ {[%clk 0:00:18.5]}
37... Kd6 {[%clk 0:00:02.4]} 38. Qf6# {[%clk 0:00:18.6]} 1-0

[Event "*** Titled Tuesday Blitz"]
[Site "Chess.com"]
[Date "2021.03.30"]
[Round "2"]
[White "LordIron"]
[Black "KubaGepard"]
[Result "1/2-1/2"]
[WhiteElo "2237"]
[BlackElo "2425"]
[TimeControl "180+1"]
[EndTime "10:17:26 PDT"]
[Termination "Game drawn by repetition"]

1. d4 {[%clk 0:02:57.4]} 1... d5 {[%clk 0:02:58.7]} 2. Nf3 {[%clk 0:02:57.4]}
2... Nf6 {[%clk 0:02:59.1]} 3. g3 {[%clk 0:02:57.5]} 3... b5 {[%clk 0:02:58.4]}
4. a4 {[%clk 0:02:55.4]} 4... b4 {[%clk 0:02:57.8]} 5. Bg2 {[%clk 0:02:52.2]}
5... e6 {[%clk 0:02:57.3]} 6. c4 {[%clk 0:02:51.4]} 6... bxc3 {[%clk 0:02:57.5]}
7. bxc3 {[%clk 0:02:50.9]} 7... a5 {[%clk 0:02:48.1]} 8. O-O {[%clk 0:02:47.7]}
8... Ba6 {[%clk 0:02:47.7]} 9. Ba3 {[%clk 0:02:46.8]} 9... Nbd7 {[%clk
0:02:44.9]} 10. Nbd2 {[%clk 0:02:37]} 10... Bxa3 {[%clk 0:02:39.5]} 11. Rxa3
{[%clk 0:02:36.7]} 11... Nb6 {[%clk 0:02:38.7]} 12. Ne5 {[%clk 0:02:33.9]} 12...
Qd6 {[%clk 0:02:34.8]} 13. Ra2 {[%clk 0:02:21.7]} 13... Nfd7 {[%clk 0:02:32.7]}
14. c4 {[%clk 0:01:58.6]} 14... Nxe5 {[%clk 0:02:18.4]} 15. c5 {[%clk
0:01:57.3]} 15... Qe7 {[%clk 0:02:13.8]} 16. cxb6 {[%clk 0:01:47.2]} 16... Nc4
{[%clk 0:02:09.8]} 17. b7 {[%clk 0:00:56]} 17... Rb8 {[%clk 0:02:04.8]} 18. Nxc4
{[%clk 0:00:56.5]} 18... Bxc4 {[%clk 0:02:04.7]} 19. Rb2 {[%clk 0:00:56.8]}
19... O-O {[%clk 0:01:49.8]} 20. Qd2 {[%clk 0:00:56.9]} 20... c6 {[%clk
0:01:42.7]} 21. Rfb1 {[%clk 0:00:54.4]} 21... Qc7 {[%clk 0:01:39]} 22. Rb6
{[%clk 0:00:52.5]} 22... h6 {[%clk 0:01:31.6]} 23. e3 {[%clk 0:00:52.1]} 23...
Rfe8 {[%clk 0:01:22.7]} 24. Qxa5 {[%clk 0:00:51.4]} 24... Rxb7 {[%clk
0:01:20.5]} 25. Qc5 {[%clk 0:00:44.4]} 25... Rxb6 {[%clk 0:01:06.7]} 26. Rxb6
{[%clk 0:00:45.3]} 26... Rb8 {[%clk 0:00:59.2]} 27. a5 {[%clk 0:00:42]} 27...
Rxb6 {[%clk 0:00:57.8]} 28. axb6 {[%clk 0:00:40.6]} 28... Qb7 {[%clk 0:00:55.7]}
29. Bf1 {[%clk 0:00:40.3]} 29... Bxf1 {[%clk 0:00:54.1]} 30. Kxf1 {[%clk
0:00:40.8]} 30... g6 {[%clk 0:00:50.5]} 31. Qa5 {[%clk 0:00:39.7]} 31... Qe7
{[%clk 0:00:30.5]} 32. Qa7 {[%clk 0:00:36.4]} 32... Qb4 {[%clk 0:00:29.9]} 33.
b7 {[%clk 0:00:29.4]} 33... Qb1+ {[%clk 0:00:29.1]} 34. Kg2 {[%clk 0:00:26.5]}
34... Qe4+ {[%clk 0:00:28.9]} 35. f3 {[%clk 0:00:18.8]} 35... Qc2+ {[%clk
0:00:28.1]} 36. Kf1 {[%clk 0:00:11.5]} 36... Qc1+ {[%clk 0:00:23.8]} 37. Kg2
{[%clk 0:00:09.9]} 37... Qc2+ {[%clk 0:00:23.9]} 38. Kh3 {[%clk 0:00:09.6]}
38... Qf5+ {[%clk 0:00:23.5]} 39. Kg2 {[%clk 0:00:09.8]} 39... Qc2+ {[%clk
0:00:23.5]} 1/2-1/2

[Event "*** Titled Tuesday Blitz"]
[Site "Chess.com"]
[Date "2021.03.30"]
[Round "2"]
[White "Fortitudine"]
[Black "theredking89"]
[Result "1/2-1/2"]
[WhiteElo "2273"]
[BlackElo "2540"]
[TimeControl "180+1"]
[EndTime "10:17:27 PDT"]
[Termination "Game drawn by repetition"]

1. c4 {[%clk 0:03:00.9]} 1... Nf6 {[%clk 0:02:59.9]} 2. g3 {[%clk 0:02:59.8]}
2... g6 {[%clk 0:03:00.8]} 3. Bg2 {[%clk 0:02:59.8]} 3... Bg7 {[%clk 0:03:01.7]}
4. Nc3 {[%clk 0:03:00.3]} 4... O-O {[%clk 0:03:01.4]} 5. e4 {[%clk 0:03:00.8]}
5... c5 {[%clk 0:03:01.3]} 6. d3 {[%clk 0:03:00.5]} 6... Nc6 {[%clk 0:03:01.8]}
7. Nge2 {[%clk 0:03:01]} 7... d6 {[%clk 0:03:01.8]} 8. O-O {[%clk 0:03:01.1]}
8... Ne8 {[%clk 0:03:01.6]} 9. Be3 {[%clk 0:02:59.7]} 9... Nc7 {[%clk 0:03:02]}
10. d4 {[%clk 0:03:00.3]} 10... cxd4 {[%clk 0:03:02.9]} 11. Nxd4 {[%clk
0:03:01.2]} 11... Ne6 {[%clk 0:03:01.5]} 12. Nde2 {[%clk 0:03:01.2]} 12... Nc5
{[%clk 0:03:00]} 13. Rc1 {[%clk 0:02:56.5]} 13... a5 {[%clk 0:02:59.3]} 14. b3
{[%clk 0:02:53.2]} 14... Bg4 {[%clk 0:02:46.6]} 15. f3 {[%clk 0:02:52]} 15...
Bc8 {[%clk 0:02:40.8]} 16. Nd4 {[%clk 0:02:37.3]} 16... Nxd4 {[%clk 0:02:30.3]}
17. Bxd4 {[%clk 0:02:36.8]} 17... Bxd4+ {[%clk 0:02:25.2]} 18. Qxd4 {[%clk
0:02:37.7]} 18... Be6 {[%clk 0:02:24.6]} 19. e5 {[%clk 0:02:26.7]} 19... Qb6
{[%clk 0:02:08.6]} 20. exd6 {[%clk 0:02:23.1]} 20... Qxd6 {[%clk 0:01:55.3]} 21.
Qxd6 {[%clk 0:02:22.3]} 21... exd6 {[%clk 0:01:56.2]} 22. Rfd1 {[%clk
0:02:11.7]} 22... Rfd8 {[%clk 0:01:55.7]} 23. Kf2 {[%clk 0:01:57.7]} 23... Kf8
{[%clk 0:01:50.1]} 24. f4 {[%clk 0:01:53.2]} 24... Ke7 {[%clk 0:01:44.2]} 25.
Rd2 {[%clk 0:01:45.5]} 25... Ra6 {[%clk 0:01:40.6]} 26. Re1 {[%clk 0:01:41.6]}
26... Kf8 {[%clk 0:01:39.5]} 27. Red1 {[%clk 0:01:30.4]} 27... Rb6 {[%clk
0:01:31.2]} 28. Nb5 {[%clk 0:01:21]} 28... Ke7 {[%clk 0:01:31]} 29. Re1 {[%clk
0:00:57.6]} 29... Kf8 {[%clk 0:01:19.3]} 30. Red1 {[%clk 0:00:56.4]} 30... Ke7
{[%clk 0:01:16]} 31. Re1 {[%clk 0:00:56.7]} 31... a4 {[%clk 0:01:11.2]} 32. b4
{[%clk 0:00:43.4]} 32... Na6 {[%clk 0:01:07.6]} 33. a3 {[%clk 0:00:43.5]} 33...
Kf8 {[%clk 0:01:04.6]} 34. Bd5 {[%clk 0:00:42.9]} 34... Bxd5 {[%clk 0:01:00.8]}
35. Rxd5 {[%clk 0:00:43.8]} 35... Rc6 {[%clk 0:01:00.1]} 36. Rd4 {[%clk
0:00:41.5]} 36... Nc7 {[%clk 0:00:53.8]} 37. Nxc7 {[%clk 0:00:40.9]} 37... Rxc7
{[%clk 0:00:54.7]} 38. Red1 {[%clk 0:00:40.2]} 38... Rdc8 {[%clk 0:00:50.3]} 39.
Rxd6 {[%clk 0:00:21.8]} 39... Rxc4 {[%clk 0:00:50.2]} 40. Rd8+ {[%clk
0:00:21.2]} 40... Rxd8 {[%clk 0:00:35.4]} 41. Rxd8+ {[%clk 0:00:22.1]} 41... Ke7
{[%clk 0:00:34.9]} 42. Rb8 {[%clk 0:00:21.1]} 42... Rc2+ {[%clk 0:00:30.9]} 43.
Kf3 {[%clk 0:00:20.5]} 43... Rc3+ {[%clk 0:00:30.1]} 44. Ke4 {[%clk 0:00:20.4]}
44... Rxa3 {[%clk 0:00:31]} 45. Rxb7+ {[%clk 0:00:20.3]} 45... Kf6 {[%clk
0:00:31]} 46. Rb6+ {[%clk 0:00:20.6]} 46... Ke7 {[%clk 0:00:28.3]} 47. Rb7+
{[%clk 0:00:20.6]} 47... Ke6 {[%clk 0:00:27.3]} 48. Rb6+ {[%clk 0:00:20.7]}
48... Ke7 {[%clk 0:00:25.9]} 49. Rb7+ {[%clk 0:00:21.2]} 1/2-1/2